bitfinex/quotes_SOLUSD_20250217
["timestamp","ask_amount","ask_price","bid_price","bid_amount"]
[1739776355380,0.063,183.35,183.32,13.41184853]
[1739776355794,0.063,183.35,183.31,17.23044853]
[1739776356001,0.063,183.35,183.31,33.32260855]
[1739776357184,0.063,183.35,183.31,17.23044853]
[1739776360298,0.063,183.35,183.33,13.41184853]
[1739776360707,0.063,183.35,183.34,13.41184853]
[1739776360869,0.063,183.35,183.34,29.50400855]
[1739776362080,0.063,183.35,183.34,33.32200855]
[1739776362606,0.063,183.35,183.34,17.22984853]
[1739776363602,0.063,183.35,183.32,5.4345]
[1739776363773,0.063,183.35,183.33,13.41184853]
[1739776364398,0.063,183.35,183.33,17.23004853]
[1739776366977,0.063,183.35,183.33,33.32220855]
[1739776368406,0.063,183.35,183.33,17.23004853]
[1739776372134,0.063,183.35,183.33,33.32220855]
[1739776372319,0.063,183.35,183.34,29.50400855]
[1739776373535,0.063,183.35,183.34,17.22984853]
[1739776374207,0.063,183.35,183.34,33.32200855]
[1739776375842,0.063,183.35,183.34,17.22984853]
[1739776376226,0.063,183.35,183.34,13.41184853]
[1739776376732,0.063,183.35,183.34,33.32200855]
[1739776378658,0.0001,183.35,183.34,35.32200855]
[1739776379849,0.0001,183.35,183.34,34.32200855]
[1739776381462,0.0001,183.35,183.34,33.32200855]
[1739776381626,0.0001,183.35,183.34,34.32200855]
[1739776381825,0.0001,183.35,183.34,33.32200855]
[1739776382258,0.0001,183.35,183.34,20.91016002]
[1739776382556,16.09226002,183.35,183.33,0.03]
[1739776384657,0.0001,183.35,183.33,0.03]
[1739776386241,16.09226002,183.35,183.33,0.03]
[1739776393968,16.09216002,183.34,183.33,0.03]
[1739776396685,19.91016002,183.34,183.33,0.03]
[1739776400467,36.00232004,183.34,183.33,0.03]
[1739776400678,55.35265265,183.34,183.33,0.03]
[1739776400972,20.0,183.31,183.23,0.03]
[1739776401173,10.30693053,183.26,183.23,0.03]
[1739776401689,10.30693053,183.27,183.23,0.03]
[1739776402071,10.30693053,183.29,183.23,0.03]
[1739776402395,10.30693053,183.29,183.23,10.33693053]
[1739776402686,10.30693053,183.26,183.23,0.03]
[1739776403192,10.30693053,183.25,183.23,0.03]
[1739776403584,13.3645,183.32,183.23,0.03]
[1739776403585,10.30693053,183.26,183.23,0.03]
[1739776404567,10.30693053,183.24,183.23,0.03]
[1739776404772,2.17978745,183.29,183.23,0.03]
[1739776404973,10.30693053,183.24,183.23,0.03]
[1739776405902,55.35475265,183.24,183.23,0.03]
[1739776406199,14.12703053,183.24,183.23,0.03]
[1739776406699,56.06240462,183.24,183.23,0.03]
[1739776407495,39.94125231,183.24,183.23,0.03]
[1739776407794,56.06240462,183.24,183.23,0.03]
[1739776410075,56.06240462,183.24,183.18,0.03]
[1739776410291,16.12115231,183.19,183.18,0.03]
[1739776411602,16.12115231,183.19,183.17,0.03]
[1739776411804,19.94245231,183.18,183.17,0.03]
[1739776412012,36.06360462,183.18,183.17,0.03]
[1739776412216,52.24230462,183.17,183.07,1.5168]
[1739776412516,32.24230462,183.15,183.06,10.1509]
[1739776412709,32.24230462,183.15,183.07,13.41184853]
[1739776413586,32.24230462,183.15,183.06,6.3272]
[1739776413587,32.24230462,183.15,183.04,8.56245174]
[1739776413911,23.8224,183.13,183.05,13.41184853]
[1739776414091,39.94355231,183.13,183.04,8.56245174]
[1739776414691,16.12115231,183.05,183.04,8.56245174]
[1739776414999,16.12115231,183.05,182.98,5.3422]
[1739776415210,16.12115231,183.02,182.99,13.41184853]
[1739776416200,16.12115231,183.03,183.01,13.41184853]
[1739776416916,16.12115231,183.04,183.01,13.41184853]
[1739776417281,16.12115231,183.06,183.01,13.41184853]
[1739776417912,16.12115231,183.05,183.01,13.41184853]
[1739776418112,16.12115231,183.05,183.0,17.23694853]
[1739776418903,16.12115231,183.03,183.0,17.23694853]
[1739776419212,16.12115231,183.04,183.0,17.23694853]
[1739776419919,16.12115231,183.05,183.0,17.23694853]
[1739776420482,3.8226,183.12,183.0,17.23694853]
[1739776420483,16.12115231,183.06,183.0,33.35810084]
[1739776420689,16.12115231,183.08,183.03,13.41184853]
[1739776421196,16.12115231,183.1,183.04,13.41184853]
[1739776421521,16.12115231,183.1,183.04,16.12115231]
[1739776421686,16.12115231,183.11,183.05,29.53300084]
[1739776421891,16.12115231,183.11,183.06,3.8238]
[1739776422122,16.12115231,183.11,183.07,13.41184853]
[1739776422289,16.12115231,183.12,183.07,13.41184853]
[1739776422491,16.12115231,183.14,183.08,16.12115231]
[1739776422724,16.12115231,183.15,183.1,13.41184853]
[1739776422944,16.12115231,183.17,183.11,13.41184853]
[1739776423515,16.12115231,183.16,183.11,13.41184853]
[1739776423717,16.12115231,183.15,183.1,13.44184853]
[1739776423915,16.12115231,183.13,183.1,0.03]
[1739776424342,16.12115231,183.15,183.11,13.41184853]
[1739776425543,16.12115231,183.15,183.1,0.03]
[1739776425853,16.12115231,183.15,183.1,13.44184853]
[1739776426450,16.12115231,183.14,183.1,13.44184853]
[1739776426945,16.12115231,183.15,183.1,13.44184853]
[1739776427250,16.12115231,183.11,183.1,0.03]
[1739776428444,19.94395231,183.11,183.1,0.03]
[1739776431655,20.0,183.07,182.96,7.886]
[1739776431830,16.12115231,183.01,182.97,13.41184853]
[1739776432453,16.12115231,183.0,182.96,7.886]
[1739776432653,16.12115231,182.99,182.92,22.49385231]
[1739776432856,16.12115231,182.99,182.93,13.41184853]
[1739776433064,16.12115231,182.99,182.93,29.53300084]
[1739776433643,19.94645231,182.99,182.93,13.41184853]
[1739776434071,16.12115231,182.98,182.93,13.41184853]
[1739776434664,19.94665231,182.98,182.93,13.41184853]
[1739776435046,16.12115231,182.96,182.92,6.3727]
[1739776435760,3.8255,182.98,182.85,1.0]
[1739776435761,16.12115231,182.93,182.85,6.3727]
[1739776436063,3.8255,182.98,182.86,16.12115231]
[1739776436064,16.12115231,182.92,182.86,16.12115231]
[1739776436265,16.12115231,182.92,182.87,13.41184853]
[1739776436578,16.12115231,182.9,182.84,16.12115231]
[1739776436868,16.12115231,182.9,182.8,7.3727]
[1739776436869,3.8274,182.89,182.83,16.12115231]
[1739776437641,3.8274,182.89,182.84,13.41184853]
[1739776438293,19.94835231,182.9,182.84,13.41184853]
[1739776438801,16.12115231,182.91,182.85,29.53300084]
[1739776438983,16.12115231,182.9,182.85,13.41184853]
[1739776440082,16.12115231,182.9,182.84,13.41184853]
[1739776440291,16.12115231,182.89,182.84,13.41184853]
[1739776441769,16.12115231,182.89,182.83,13.41184853]
[1739776441970,16.12115231,182.89,182.83,29.53300084]
[1739776442483,16.12115231,182.9,182.84,16.12115231]
[1739776443792,16.12115231,182.9,182.84,19.94955231]
[1739776445200,16.12115231,182.91,182.85,13.41184853]
[1739776447798,19.95145231,182.75,182.74,0.03]
[1739776453202,16.12115231,182.75,182.74,0.03]
[1739776453719,16.12115231,182.76,182.74,0.03]
[1739776454592,16.12115231,182.75,182.74,0.03]
[1739776455126,12.69166498,182.82,182.74,0.03]
[1739776455127,16.12115231,182.76,182.74,0.03]
[1739776455516,16.12115231,182.75,182.74,0.03]
[1739776456088,16.12115231,182.79,182.74,0.03]
[1739776457023,26.29053434,182.8,182.75,13.41184853]
[1739776457516,26.29053434,182.8,182.74,0.03]
[1739776457893,26.29053434,182.8,182.75,13.41184853]
[1739776458825,10.16938203,182.8,182.75,29.53300084]
[1739776459301,10.16938203,182.8,182.75,13.41184853]
[1739776459806,10.16938203,182.8,182.75,29.53300084]
[1739776460009,10.16938203,182.8,182.76,17.24194853]
[1739776461303,16.12115231,182.83,182.76,33.36310084]
[1739776461704,10.54127031,182.86,182.76,17.24194853]
[1739776461705,16.12115231,182.82,182.76,17.24194853]
[1739776462416,16.12115231,182.81,182.76,17.24194853]
[1739776463027,16.12115231,182.81,182.76,13.41184853]
[1739776463325,16.12115231,182.81,182.76,17.24194853]
[1739776463505,16.12115231,182.82,182.76,17.24194853]
[1739776463705,16.12115231,182.82,182.76,33.36310084]
[1739776463920,16.12115231,182.84,182.79,13.41184853]
[1739776464113,16.12115231,182.85,182.79,13.41184853]
[1739776464311,10.54127031,182.86,182.75,26.81804853]
[1739776464312,16.12115231,182.83,182.75,26.81804853]
[1739776464524,16.12115231,182.82,182.77,13.41184853]
[1739776464706,16.12115231,182.83,182.77,29.53300084]
[1739776465628,16.12115231,182.83,182.79,13.41184853]
[1739776466006,14.36937031,182.86,182.79,13.41184853]
[1739776466007,16.12115231,182.85,182.79,13.41184853]
[1739776466221,26.66242262,182.86,182.79,29.53300084]
[1739776466430,10.54127031,182.86,182.81,21.14244853]
[1739776466608,10.54127031,182.86,182.83,13.41184853]
[1739776467109,10.54127031,182.86,182.83,29.53300084]
[1739776467510,10.54127031,182.86,182.85,13.41184853]
[1739776468029,10.54127031,182.86,182.85,29.53300084]
[1739776468820,10.54127031,182.86,182.85,13.41184853]
[1739776469013,10.54127031,182.86,182.85,29.53300084]
[1739776469215,10.54127031,182.86,182.84,3.8284]
[1739776469414,10.54127031,182.86,182.85,13.41184853]
[1739776470423,10.54127031,182.86,182.85,33.36120084]
[1739776470813,16.12115231,182.93,182.85,33.36120084]
[1739776471018,16.12115231,182.93,182.88,13.41184853]
[1739776471713,16.12115231,182.91,182.85,3.8282]
[1739776472331,16.12115231,182.91,182.86,17.23984853]
[1739776472630,16.12115231,182.89,182.83,16.12115231]
[1739776473038,16.12115231,182.89,182.84,13.41184853]
[1739776473217,16.12115231,182.9,182.84,16.12115231]
[1739776473536,16.12115231,182.91,182.85,13.41184853]
[1739776473711,16.12115231,182.88,182.81,6.0756]
[1739776473916,16.12115231,182.84,182.78,17.64425231]
[1739776474233,16.12115231,182.86,182.81,13.41184853]
[1739776474437,16.12115231,182.86,182.81,17.24094853]
[1739776475633,16.12115231,182.87,182.81,33.36210084]
[1739776475824,16.12115231,182.89,182.83,13.41184853]
[1739776476425,19.94835231,182.9,182.83,19.94975231]
[1739776476632,16.12115231,182.89,182.84,13.41184853]
[1739776476918,16.12115231,182.9,182.84,13.41184853]
[1739776477543,16.12115231,182.9,182.85,13.41184853]
[1739776478125,16.12115231,182.9,182.85,17.24004853]
[1739776480027,16.12115231,182.9,182.84,17.24024853]
[1739776481523,16.12115231,182.89,182.84,17.24024853]
[1739776481724,16.12115231,182.88,182.84,17.24024853]
[1739776481933,16.12115231,182.89,182.84,17.24024853]
[1739776483432,16.12115231,182.9,182.84,33.36140084]
[1739776483944,16.12115231,182.88,182.84,17.24024853]
[1739776486670,16.12115231,182.93,182.88,3.8276]
[1739776489628,16.12115231,182.92,182.87,13.41184853]
[1739776489833,16.12115231,182.92,182.87,17.23964853]
[1739776490351,16.12115231,182.92,182.77,6.3228]
[1739776490352,20.0,182.85,182.77,6.3228]
[1739776490649,16.12115231,182.82,182.77,6.3228]
[1739776490844,16.12115231,182.83,182.78,13.41184853]
[1739776491526,16.12115231,182.82,182.78,17.24144853]
[1739776492240,16.12115231,182.83,182.78,17.24144853]
[1739776492833,5.4212,182.89,182.78,33.36260084]
[1739776493041,16.12115231,182.86,182.78,33.36260084]
[1739776493339,16.12115231,182.85,182.78,33.36260084]
[1739776494132,16.12115231,182.84,182.78,13.41184853]
[1739776494641,16.12115231,182.83,182.78,13.41184853]
[1739776495357,19.94975231,182.83,182.78,13.44184853]
[1739776495560,16.12115231,182.82,182.78,13.44184853]
[1739776496756,16.12115231,182.82,182.78,0.03]
[1739776496977,16.12115231,182.81,182.78,0.03]
[1739776499237,19.95025231,182.81,182.78,0.03]
[1739776499437,16.12115231,182.81,182.78,0.03]
[1739776499642,19.95025231,182.81,182.78,0.03]
[1739776499834,16.12115231,182.81,182.78,0.03]
[1739776500329,16.12115231,182.83,182.78,0.03]
[1739776501362,19.94995231,182.83,182.78,0.03]
[1739776502949,16.12115231,182.81,182.78,0.03]
[1739776504534,16.12115231,182.8,182.78,0.03]
[1739776505049,19.95055231,182.8,182.78,0.03]
[1739776505246,16.12115231,182.79,182.78,0.03]
[1739776507057,19.95065231,182.79,182.78,0.03]
[1739776507253,3.8295,182.79,182.78,0.03]
[1739776507484,39.95045231,182.8,182.78,0.03]
[1739776507939,20.0,182.79,182.78,0.03]
[1739776508141,19.95025231,182.82,182.78,0.03]
[1739776508639,16.12115231,182.83,182.78,0.03]
[1739776508841,16.12115231,182.86,182.79,16.12115231]
[1739776509065,16.12115231,182.86,182.79,19.95055231]
[1739776509066,19.94915231,182.86,182.79,19.95055231]
[1739776509466,3.828,182.86,182.8,16.12115231]
[1739776509765,21.56145231,182.87,182.8,16.12115231]
[1739776510450,16.12115231,182.86,182.8,13.41184853]
[1739776510966,16.12115231,182.86,182.8,29.53300084]
[1739776511149,16.12115231,182.86,182.8,33.36210084]
[1739776511550,16.12115231,182.86,182.8,29.53300084]
[1739776511753,16.12115231,182.86,182.8,13.41184853]
[1739776511960,19.94925231,182.86,182.8,13.41184853]
[1739776512155,16.12115231,182.85,182.78,16.15115231]
[1739776512676,16.12115231,182.83,182.78,0.03]
[1739776513370,3.8287,182.83,182.78,0.03]
[1739776513960,36.12115231,182.84,182.78,0.03]
[1739776514156,20.0,182.84,182.78,16.15115231]
[1739776514468,39.94965231,182.84,182.78,0.03]
[1739776514664,20.0,182.84,182.78,16.15115231]
[1739776515584,20.0,182.84,182.79,16.12115231]
[1739776515749,19.94915231,182.86,182.79,16.12115231]
[1739776515950,16.12115231,182.87,182.8,16.12115231]
[1739776516709,16.12115231,182.88,182.82,6.6618]
[1739776516845,16.12115231,182.89,182.82,6.6618]
[1739776517274,16.12115231,182.84,182.78,3.8597]
[1739776517646,36.12115231,182.86,182.79,29.53300084]
[1739776517969,19.94865231,182.89,182.81,16.12115231]
[1739776518570,19.94865231,182.89,182.82,16.12115231]
[1739776519076,16.12115231,182.89,182.83,13.41184853]
[1739776519255,86.76,182.91,182.83,13.41184853]
[1739776519256,102.88115231,182.91,182.85,13.41184853]
[1739776519671,16.12115231,182.9,182.85,13.41184853]
[1739776521371,16.12115231,182.9,182.85,17.24004853]
[1739776522874,16.12115231,182.9,182.85,13.41184853]
[1739776523683,16.12115231,182.91,182.85,17.24004853]
[1739776523982,16.12115231,182.9,182.85,17.24004853]
[1739776524184,16.12115231,182.91,182.85,17.24004853]
[1739776524375,3.8261,182.95,182.85,33.36120084]
[1739776524789,16.12115231,182.92,182.85,33.36120084]
[1739776525088,16.12115231,182.91,182.85,13.41184853]
[1739776525696,19.94825231,182.91,182.85,13.41184853]
[1739776526078,16.12115231,182.88,182.78,11.114]
[1739776526386,16.12115231,182.88,182.81,16.12115231]
[1739776526590,16.12115231,182.87,182.82,13.41184853]
[1739776527199,16.12115231,182.89,182.82,33.36170084]
[1739776528494,16.12115231,182.91,182.84,16.12115231]
[1739776528699,16.12115231,182.91,182.85,13.41184853]
[1739776530318,16.12115231,182.91,182.85,17.23994853]
[1739776530986,16.12115231,182.91,182.85,33.36110084]
[1739776531181,16.12115231,182.92,182.85,33.36110084]
[1739776531388,16.12115231,182.93,182.87,16.12115231]
[1739776531585,16.12115231,182.93,182.86,29.53300084]
[1739776531785,16.12115231,182.92,182.86,29.53300084]
[1739776532497,6.1823,182.98,182.82,9.6022]
[1739776532498,10.0088744,183.07,182.95,33.41184853]
[1739776532798,10.0088744,183.07,183.01,16.12115231]
[1739776533000,16.12115231,183.05,182.99,16.12115231]
[1739776533380,10.0088744,183.07,182.98,16.12115231]
[1739776533584,16.12115231,183.05,182.99,16.12115231]
[1739776534098,16.12115231,183.04,182.98,16.12115231]
[1739776534291,16.12115231,183.05,182.99,16.12115231]
[1739776534604,24.54702671,183.07,183.01,16.12115231]
[1739776535204,8.4258744,183.07,183.0,16.12115231]
[1739776535396,16.12115231,183.06,183.0,16.12115231]
[1739776535904,16.12115231,183.06,183.0,19.94625231]
[1739776536395,16.12115231,183.04,182.98,16.12115231]
[1739776536803,16.12115231,183.04,182.98,13.41184853]
[1739776537376,16.12115231,183.04,182.98,16.12115231]
[1739776537574,16.12115231,183.04,182.98,19.94655231]
[1739776537778,16.12115231,183.04,182.98,17.23724853]
[1739776537995,16.12115231,183.03,182.98,13.41184853]
[1739776538209,16.12115231,183.02,182.96,16.12115231]
[1739776538377,16.12115231,182.98,182.93,6.2825]
[1739776538581,16.12115231,182.96,182.93,6.2825]
[1739776539484,16.12115231,182.97,182.93,6.2825]
[1739776539678,16.12115231,182.96,182.93,6.2825]
[1739776540492,16.12115231,182.94,182.89,3.8272]
[1739776540690,16.12115231,182.97,182.88,6.2825]
[1739776540691,16.12115231,182.9,182.88,6.2825]
[1739776540901,16.12115231,182.91,182.88,6.2825]
[1739776541803,16.12115231,182.97,182.88,6.2825]
[1739776541804,16.12115231,182.93,182.89,13.41184853]
[1739776542014,16.12115231,182.95,182.89,13.41184853]
[1739776542199,16.12115231,182.93,182.88,6.2825]
[1739776542400,16.12115231,182.91,182.86,3.8279]
[1739776542901,16.12115231,182.91,182.87,13.41184853]
[1739776544329,16.12115231,182.93,182.86,19.94915231]
[1739776544490,16.12115231,182.93,182.87,13.41184853]
[1739776544690,16.12115231,182.93,182.87,29.53300084]
[1739776545092,16.12115231,182.93,182.87,13.41184853]
[1739776545400,16.12115231,182.93,182.87,17.23964853]
[1739776545595,16.12115231,182.92,182.87,17.23964853]
[1739776547306,16.12115231,182.93,182.87,17.23964853]
[1739776547507,16.12115231,182.92,182.87,17.23964853]
[1739776547720,16.12115231,182.93,182.87,33.36080084]
[1739776548026,16.12115231,182.97,182.9,16.12115231]
[1739776548332,16.12115231,182.94,182.88,16.12115231]
[1739776548628,16.12115231,182.94,182.87,3.8278]
[1739776548629,16.12115231,182.93,182.87,19.94895231]
[1739776548916,16.12115231,182.93,182.88,13.41184853]
[1739776549087,16.12115231,182.91,182.86,0.03]
[1739776549602,16.12115231,182.91,182.87,13.41184853]
[1739776550516,16.12115231,182.91,182.87,17.23964853]
[1739776550734,16.12115231,182.91,182.86,0.03]
[1739776551424,16.12115231,182.9,182.86,0.03]
[1739776552222,16.12115231,182.9,182.86,3.858]
[1739776552840,16.12115231,182.9,182.86,0.03]
[1739776553206,16.12115231,182.92,182.87,13.41184853]
[1739776554203,16.12115231,182.93,182.87,29.53300084]
[1739776554622,16.12115231,182.93,182.88,3.8276]
[1739776555034,16.12115231,182.94,182.88,3.8276]
[1739776555736,16.12115231,182.94,182.88,19.94875231]
[1739776557030,16.12115231,182.94,182.88,3.8276]
[1739776560251,16.12115231,182.93,182.88,3.8276]
[1739776560642,16.12115231,182.92,182.87,13.44184853]
[1739776560837,16.12115231,182.91,182.87,3.8578]
[1739776561650,16.12115231,182.92,182.87,17.26964853]
[1739776562026,16.12115231,182.93,182.87,33.39080084]
[1739776564653,16.12115231,182.94,182.89,13.41184853]
[1739776564860,16.12115231,182.95,182.89,29.53300084]
[1739776566653,16.12115231,182.95,182.9,3.8272]
[1739776567649,16.12115231,182.93,182.87,16.15115231]
[1739776567830,16.12115231,182.91,182.88,3.8274]
[1739776568031,16.12115231,182.92,182.88,3.8274]
[1739776568434,16.12115231,182.93,182.88,3.8274]
[1739776568751,16.12115231,182.93,182.87,13.44184853]
[1739776568931,16.12115231,182.93,182.87,17.26964853]
[1739776569329,16.12115231,182.92,182.87,17.26964853]
[1739776569525,16.12115231,182.89,182.87,0.03]
[1739776570256,16.12115231,182.91,182.87,0.03]
[1739776570531,16.12115231,182.92,182.87,0.03]
[1739776570951,16.12115231,182.94,182.88,16.12115231]
[1739776571429,16.12115231,182.95,182.88,16.12115231]
[1739776571935,3.8253,182.99,182.89,29.53300084]
[1739776571936,16.12115231,182.96,182.89,29.53300084]
[1739776572136,16.12115231,182.97,182.9,16.12115231]
[1739776572764,36.12115231,182.97,182.9,16.12115231]
[1739776573275,16.12115231,182.99,182.93,29.53300084]
[1739776573473,16.12115231,183.03,182.96,16.12115231]
[1739776574541,16.12115231,183.01,182.96,13.41184853]
[1739776574755,16.12115231,183.0,182.96,13.41184853]
[1739776575074,16.12115231,183.0,182.93,22.20755231]
[1739776575377,16.12115231,183.03,182.97,29.53300084]
[1739776575548,16.12115231,183.05,182.99,13.41184853]
[1739776576067,16.12115231,183.05,183.0,13.41184853]
[1739776576266,16.12115231,183.06,183.0,13.41184853]
[1739776576472,16.12115231,183.05,183.0,13.41184853]
[1739776576652,16.12115231,183.04,182.98,29.53300084]
[1739776577045,16.12115231,183.05,183.0,13.41184853]
[1739776577253,16.12115231,183.07,183.02,3.8247]
[1739776577762,16.12115231,183.06,183.02,3.8247]
[1739776578450,16.12115231,183.05,183.01,3.8249]
[1739776579242,16.12115231,183.04,183.0,13.41184853]
[1739776580571,16.12115231,183.01,182.98,0.03]
[1739776580778,16.12115231,183.0,182.98,0.03]
[1739776581287,16.12115231,182.99,182.98,0.03]
[1739776582680,19.94645231,182.99,182.98,0.03]
[1739776582860,36.06760462,182.99,182.98,0.03]
[1739776583686,19.94645231,182.99,182.98,0.03]
[1739776586361,36.06760462,182.99,182.98,0.03]
[1739776587194,19.94645231,182.99,182.98,0.03]
[1739776590202,36.06760462,182.99,182.98,0.03]
[1739776591183,19.94645231,182.99,182.98,0.03]
[1739776594567,36.06760462,182.99,182.98,0.03]
[1739776594883,45.63090462,182.99,182.89,7.7339]
[1739776595066,16.12115231,182.91,182.87,13.44184853]
[1739776596273,16.12115231,182.89,182.87,0.03]
[1739776596599,16.12115231,182.91,182.87,0.03]
[1739776598200,3.8266,182.93,182.87,0.03]
[1739776598201,16.12115231,182.9,182.87,0.03]
[1739776598693,16.12115231,182.91,182.87,0.03]
[1739776599578,16.12115231,182.89,182.87,0.03]
[1739776599893,16.12115231,182.88,182.87,0.03]
[1739776600201,16.12115231,182.9,182.87,0.03]
[1739776600494,16.12115231,182.9,182.87,33.44184853]
[1739776600697,16.12115231,182.96,182.9,13.41184853]
[1739776601184,16.12115231,182.95,182.9,13.41184853]
[1739776601586,16.12115231,182.95,182.9,17.23884853]
[1739776602199,16.12115231,182.96,182.9,17.23884853]
[1739776602496,16.12115231,182.95,182.9,17.23884853]
[1739776602798,16.12115231,182.93,182.88,10.1968]
[1739776603593,16.12115231,182.91,182.87,0.03]
[1739776603793,16.12115231,182.9,182.87,0.03]
[1739776604484,16.12115231,182.9,182.88,0.03]
[1739776605190,16.12115231,182.93,182.88,0.03]
[1739776605389,16.12115231,182.93,182.88,13.44184853]
[1739776605592,16.12115231,182.94,182.88,13.44184853]
[1739776606093,16.12115231,182.93,182.89,13.41184853]
[1739776606274,16.12115231,182.92,182.88,0.03]
[1739776606994,16.12115231,182.92,182.88,3.8576]
[1739776608279,16.12115231,182.93,182.88,0.03]
[1739776608677,16.12115231,182.95,182.89,16.12115231]
[1739776608872,16.12115231,182.97,182.91,13.41184853]
[1739776609189,16.12115231,182.98,182.92,13.41184853]
[1739776609999,16.12115231,182.99,182.93,3.8266]
[1739776610208,16.12115231,183.0,182.94,29.53300084]
[1739776610583,16.12115231,182.97,182.9,16.12115231]
[1739776610898,16.12115231,182.96,182.9,3.8272]
[1739776611290,16.12115231,182.96,182.93,13.41184853]
[1739776612499,16.12115231,182.95,182.9,3.8272]
[1739776613305,16.12115231,182.95,182.91,13.41184853]
[1739776613683,16.12115231,182.95,182.91,17.23874853]
[1739776614099,16.12115231,182.95,182.91,13.41184853]
[1739776614401,16.12115231,182.94,182.91,13.41184853]
[1739776614599,16.12115231,182.95,182.91,13.41184853]
[1739776614803,16.12115231,182.95,182.89,17.23924853]
[1739776616676,16.12115231,182.94,182.89,3.8274]
[1739776617006,16.12115231,182.9,182.88,0.03]
[1739776617687,16.12115231,182.91,182.88,0.03]
[1739776620003,16.12115231,182.92,182.88,0.03]
[1739776620307,16.12115231,182.93,182.88,0.03]
[1739776620892,16.12115231,182.94,182.88,0.03]
[1739776621282,16.12115231,182.93,182.88,0.03]
[1739776621912,16.12115231,182.92,182.88,0.03]
[1739776622093,16.12115231,182.89,182.88,0.03]
[1739776624205,19.94855231,182.89,182.88,0.03]
[1739776627287,27.56165231,182.89,182.88,0.03]
[1739776627487,44.68280462,182.89,182.87,0.03]
[1739776627703,32.24230462,182.88,182.87,0.03]
[1739776627894,33.24230462,182.88,182.86,0.03]
[1739776628099,16.12115231,182.87,182.86,0.03]
[1739776629111,19.94895231,182.87,182.86,0.03]
[1739776632911,16.12115231,182.87,182.86,0.03]
[1739776634901,16.12115231,182.89,182.86,0.03]
[1739776635229,16.12115231,182.91,182.86,0.03]
[1739776635525,16.12115231,182.9,182.86,0.03]
[1739776636302,16.12115231,182.88,182.86,0.03]
[1739776636612,16.12115231,182.87,182.86,0.03]
[1739776636833,16.12115231,182.88,182.86,0.03]
[1739776637110,16.12115231,182.9,182.86,0.03]
[1739776637319,16.12115231,182.91,182.86,0.03]
[1739776637529,16.12115231,182.92,182.86,13.44184853]
[1739776637902,16.12115231,182.91,182.86,13.44184853]
[1739776638328,16.12115231,182.91,182.86,0.03]
[1739776638700,16.12115231,182.91,182.86,3.8579]
[1739776638921,16.12115231,182.91,182.86,0.03]
[1739776639516,16.12115231,182.91,182.89,0.09425478]
[1739776640318,16.12115231,182.92,182.89,0.09425478]
[1739776640529,19.94745231,182.95,182.89,0.09425478]
[1739776640726,19.94745231,182.95,182.89,16.21540709]
[1739776641028,19.94745231,182.95,182.89,0.09425478]
[1739776641838,16.12115231,182.95,182.89,3.92145478]
[1739776642008,16.12115231,182.96,182.9,29.53300084]
[1739776642202,16.12115231,182.97,182.91,16.12115231]
[1739776642501,16.12115231,182.97,182.9,33.36000084]
[1739776643012,16.12115231,182.96,182.9,33.36000084]
[1739776643209,16.12115231,182.94,182.89,0.09425478]
[1739776644333,16.12115231,182.93,182.89,0.09425478]
[1739776644538,16.12115231,182.92,182.89,0.09425478]
[1739776644835,19.94755231,182.94,182.89,0.09425478]
[1739776645013,16.12115231,182.95,182.9,13.41184853]
[1739776645310,16.12115231,182.94,182.9,13.41184853]
[1739776647330,0.063,182.98,182.97,13.41184853]
[1739776647522,0.063,182.98,182.97,45.65415315]
[1739776647829,0.063,182.98,182.97,29.53300084]
[1739776648813,0.063,182.98,182.97,33.35870084]
[1739776651347,0.063,182.98,182.97,49.47985315]
[1739776651733,0.063,182.98,182.97,33.35870084]
[1739776653146,0.063,182.98,182.97,49.47985315]
[1739776654568,0.063,182.98,182.97,33.35870084]
[1739776656162,0.063,182.98,182.97,17.23754853]
[1739776656339,0.063,182.98,182.96,22.41295231]
[1739776656538,0.063,182.98,182.97,16.12115231]
[1739776656743,0.063,182.98,182.97,29.53300084]
[1739776658048,0.063,182.98,182.97,33.35870084]
[1739776658962,0.063,183.1,183.06,13.41184853]
[1739776659165,0.063,183.1,183.06,29.53300084]
[1739776659380,0.063,183.1,183.03,13.41184853]
[1739776659545,0.063,183.1,183.06,13.41184853]
[1739776660361,0.063,183.1,183.06,29.53300084]
[1739776660551,0.063,183.1,183.05,16.12115231]
[1739776660863,0.063,183.1,183.06,16.12115231]
[1739776662140,0.063,183.1,183.06,13.41184853]
[1739776663573,0.063,183.1,183.05,16.12115231]